bitfinex/quotes_ETHUSD_20250511
["timestamp","ask_amount","ask_price","bid_price","bid_amount"]
[1746926291075,3.92736891,2546.3,2545.6,2.85247918]
[1746926291276,0.44183203,2546.2,2545.6,2.85247918]
[1746926291668,0.39273689,2546.2,2545.6,2.85247918]
[1746926293490,0.04909512,2546.4,2545.7,0.01958125]
[1746926293657,0.04909268,2546.8,2545.9,0.55]
[1746926293856,0.2919516,2547.1,2546.1,0.3006]
[1746926294169,3.9250475,2547.8,2546.7,0.3006]
[1746926294393,0.50298179,2547.7,2546.9,8.0]
[1746926294579,3.9254397,2547.5,2547.0,0.01953536]
[1746926294903,3.97420972,2547.7,2547.0,0.01953534]
[1746926295204,0.04907232,2547.7,2547.0,0.01953534]
[1746926295409,3.92429371,2548.3,2547.1,0.3006]
[1746926295590,3.05006407,2548.2,2547.2,0.01951914]
[1746926295792,3.92474212,2548.0,2547.2,0.01951914]
[1746926295999,0.34923338,2548.0,2547.2,0.01951914]
[1746926296175,0.34923338,2548.0,2547.1,0.3006]
[1746926296499,0.04906733,2548.0,2547.2,0.56952335]
[1746926296670,3.92464876,2548.0,2547.2,0.56952335]
[1746926296865,0.42296552,2547.9,2547.2,0.56952335]
[1746926297488,0.30500641,2548.1,2547.3,0.3006]
[1746926297681,0.30500641,2548.1,2547.4,3.02150867]
[1746926298001,11.92396323,2548.5,2547.5,0.32010309]
[1746926298300,0.04905536,2548.4,2547.5,8.32010309]
[1746926298468,4.26140765,2548.5,2547.6,0.55]
[1746926298670,3.92416995,2548.4,2547.7,0.01950017]
[1746926298870,3.92403076,2548.4,2547.7,0.01950017]
[1746926299117,0.39730861,2548.3,2547.7,0.01950017]
[1746926299322,0.04905458,2548.3,2547.5,0.3006]
[1746926299529,0.04905458,2548.3,2547.2,14.135]
[1746926299530,0.7703,2548.2,2547.4,3.002]
[1746926299719,3.92511752,2547.7,2547.4,3.002]
[1746926299912,3.9743495,2547.6,2547.4,3.002]
[1746926300110,0.39743495,2547.5,2547.4,3.002]
[1746926300520,4.32285202,2547.5,2547.4,3.002]
[1746926300718,0.39743495,2547.5,2547.4,3.002]
[1746926300923,3.97420894,2547.7,2547.4,3.002]
[1746926301122,0.04906898,2547.7,2547.4,3.002]
[1746926301298,3.97426303,2547.7,2547.4,3.002]
[1746926301494,0.04906898,2547.7,2547.4,3.002]
[1746926301729,3.92506105,2547.8,2547.4,3.002]
[1746926301935,0.44647944,2547.7,2547.4,3.002]
[1746926302135,0.39741279,2547.7,2547.4,3.002]
[1746926302302,0.04906665,2547.9,2547.4,3.002]
[1746926302500,0.04906434,2548.0,2547.4,3.002]
[1746926302714,3.92481982,2547.9,2547.4,3.002]
[1746926302912,3.92480081,2547.9,2547.4,3.002]
[1746926303110,0.04906434,2548.0,2547.4,3.002]
[1746926303338,0.69715803,2548.0,2547.5,0.32011959]
[1746926303545,2.998,2548.1,2547.5,8.3006]
[1746926303704,6.97163018,2548.1,2547.5,8.3006]
[1746926303900,3.92464678,2548.0,2547.2,14.4356]
[1746926304106,3.92533161,2547.6,2547.2,14.4356]
[1746926304305,3.92503985,2547.8,2547.2,14.4356]
[1746926304528,2.998,2548.1,2547.3,0.01952506]
[1746926304746,0.04906356,2548.0,2547.3,0.01952506]
[1746926304923,6.9213717,2548.2,2547.3,0.56952506]
[1746926305127,3.97355166,2548.1,2547.4,0.3006]
[1746926305333,0.69705517,2548.0,2547.4,0.3006]
[1746926305638,0.69705517,2548.0,2547.5,0.01950847]
[1746926305934,3.92413588,2548.4,2547.3,8.55]
[1746926305935,0.04905812,2548.3,2547.6,0.3006]
[1746926306141,0.04905812,2548.3,2547.7,0.01950386]
[1746926306342,0.04905812,2548.3,2547.8,3.001]
[1746926306639,0.04905643,2548.6,2547.9,0.01950386]
[1746926306801,0.04905319,2548.7,2548.0,0.3006]
[1746926307004,0.29580331,2549.4,2548.4,0.3006]
[1746926307246,0.29580331,2549.4,2548.2,8.0]
[1746926307247,3.92240099,2549.5,2548.5,3.02047558]
[1746926307543,3.92206054,2549.7,2548.7,0.8506]
[1746926307902,3.92206054,2549.7,2548.9,0.55]
[1746926308116,0.04903415,2549.8,2548.9,0.55]
[1746926308319,0.44612149,2549.8,2548.8,0.3006]
[1746926308540,3.92232704,2549.6,2548.8,0.3006]
[1746926308747,3.92212671,2549.7,2548.9,0.55]
[1746926309041,0.04902856,2549.6,2548.8,0.3006]
[1746926309227,0.04902856,2549.6,2548.9,0.55]
[1746926309435,3.97070728,2550.0,2549.0,0.3006]
[1746926309645,0.39707073,2549.9,2549.1,3.0]
[1746926309943,0.04902835,2549.8,2549.2,0.01944771]
[1746926310142,3.9215926,2550.0,2549.1,3.0]
[1746926310327,3.97074785,2549.9,2549.2,0.01944188]
[1746926310549,0.04902546,2550.0,2549.3,0.3006]
[1746926310848,0.04902546,2550.0,2549.4,0.01944189]
[1746926311048,3.96982202,2550.6,2549.6,0.55]
[1746926311208,4.44022236,2550.6,2549.7,3.0]
[1746926311407,0.51942581,2550.6,2549.7,3.0]
[1746926311740,3.921472,2550.1,2549.7,3.0]
[1746926312043,0.04902335,2550.0,2549.7,3.0]
[1746926312210,3.97029238,2550.2,2549.7,3.0]
[1746926312406,0.04902046,2550.4,2549.8,0.01943192]
[1746926312613,0.04902046,2550.4,2549.7,3.0]
[1746926312848,3.92110732,2550.3,2549.7,3.0]
[1746926313046,0.04902046,2550.4,2549.7,3.0]
[1746926313346,1.29304651,2550.4,2549.7,3.0]
[1746926313545,3.92121651,2550.3,2549.7,3.0]
[1746926313748,3.92110732,2550.3,2549.7,3.0]
[1746926314046,5.21405778,2550.4,2549.7,3.0]
[1746926314234,5.21401028,2550.4,2549.8,0.3006]
[1746926314471,0.54628395,2550.3,2549.8,0.3006]
[1746926314684,4.46742302,2550.3,2549.8,0.3006]
[1746926314866,4.46742302,2550.3,2549.0,0.55]
[1746926314867,3.92167589,2550.0,2549.5,0.3006]
[1746926315050,3.92146292,2550.1,2549.6,2.993]
[1746926315253,0.44607132,2550.0,2549.6,2.993]
[1746926315480,0.04902334,2550.2,2549.6,2.993]
[1746926315793,0.04902334,2550.2,2549.7,0.01943237]
[1746926315978,3.92146258,2550.1,2549.6,2.993]
[1746926316178,3.97034143,2550.2,2549.6,2.993]
[1746926316372,3.92085506,2550.5,2549.7,0.3006]
[1746926316547,0.44110136,2550.4,2549.7,0.3006]
[1746926317584,0.04901585,2550.4,2549.7,0.3006]
[1746926317789,3.92203004,2549.7,2549.6,2.992]
[1746926318462,0.04902681,2549.8,2548.8,3.8426]
[1746926318463,0.04902681,2549.8,2548.8,0.3006]
[1746926318785,2.992,2549.7,2548.9,2.992]
[1746926318991,3.77019254,2549.7,2549.0,0.01945458]
[1746926319205,0.0490318,2549.6,2549.0,0.01945458]
[1746926319360,0.0490318,2549.6,2548.9,2.992]
[1746926320000,3.92199939,2549.8,2549.0,0.3006]
[1746926320207,3.92218591,2549.6,2549.0,0.3006]
[1746926320373,3.97110458,2549.7,2549.0,0.3006]
[1746926320551,5.05949197,2549.7,2549.0,0.3006]
[1746926320746,1.13741578,2549.7,2549.0,0.3006]
[1746926320995,0.04902839,2549.7,2549.0,0.3006]
[1746926321294,3.92208364,2549.7,2549.0,0.3006]
[1746926321595,0.04902861,2549.6,2549.0,0.3006]
[1746926321755,3.97124226,2549.6,2549.0,0.3006]
[1746926321955,0.04902861,2549.6,2549.0,0.3006]
[1746926322484,0.83832853,2549.6,2549.0,0.3006]
[1746926323753,3.92233771,2549.5,2548.6,0.3006]
[1746926324011,3.92311887,2549.0,2548.7,2.992]
[1746926324355,0.04904168,2548.9,2548.2,8.0]
[1746926324656,0.04904168,2548.9,2548.3,3.2926]
[1746926324853,3.92342658,2548.8,2548.4,2.992]
[1746926325102,3.9238195,2548.6,2548.4,2.992]
[1746926325403,0.04905144,2548.5,2548.4,2.992]
[1746926325709,0.04905144,2548.5,2548.1,17.109]
[1746926325906,3.9240814,2548.4,2548.1,17.109]
[1746926326193,0.04905682,2548.3,2548.1,17.109]
[1746926326364,0.04905682,2548.6,2548.1,17.109]
[1746926326564,3.97289143,2548.6,2548.1,17.109]
[1746926326763,3.92406138,2548.4,2548.1,17.109]
[1746926326966,0.04905682,2548.3,2548.1,17.109]
[1746926327185,0.04905682,2548.4,2548.1,17.109]
[1746926327389,0.04905682,2548.4,2548.1,14.117]
[1746926327695,3.92387679,2548.5,2548.1,14.117]
[1746926327896,0.04905711,2548.4,2548.1,14.117]
[1746926328101,3.92418732,2548.3,2548.1,14.117]
[1746926328280,0.04905711,2548.2,2548.1,14.117]
[1746926328473,0.04905711,2548.2,2547.6,0.3006]
[1746926328698,0.814,2548.5,2547.1,14.118]
[1746926328699,3.9245033,2548.1,2547.7,2.993]
[1746926329015,0.04906321,2548.0,2547.5,2.993]
[1746926329310,0.814,2547.9,2547.3,3.2936]
[1746926329510,0.04906603,2547.8,2547.3,3.2936]
[1746926329818,3.97413515,2547.8,2547.3,5.03476]
[1746926330112,3.97413515,2547.8,2547.3,3.2936]
[1746926330318,3.92515299,2547.7,2547.3,2.993]
[1746926330614,2.989,2548.1,2547.3,2.993]
[1746926330615,0.0490699,2547.6,2547.3,2.993]
[1746926330796,0.04907162,2547.9,2547.3,2.993]
[1746926332065,2.989,2547.8,2547.3,2.993]
[1746926332262,0.04906924,2547.7,2547.3,2.993]
[1746926333303,0.7761,2547.6,2547.1,14.118]
[1746926333501,3.92570228,2547.4,2547.0,2.993]
[1746926333714,3.92618767,2547.0,2546.9,2.993]
[1746926333868,2.989,2547.2,2546.5,2.993]
[1746926334067,3.92640321,2546.9,2546.5,2.993]
[1746926334274,0.04908701,2546.8,2546.5,2.993]
[1746926334582,0.04908701,2546.8,2546.1,14.4226]
[1746926334781,3.92632976,2547.0,2546.2,1.74156]
[1746926334981,8.0490872,2547.1,2546.1,14.4226]
[1746926334982,0.04908751,2546.9,2546.1,14.4226]
[1746926335984,3.97535287,2547.0,2546.1,14.4226]
[1746926336390,3.92636296,2546.9,2546.1,14.4226]
[1746926336595,0.04908482,2546.8,2546.1,14.4226]
[1746926336873,0.04908481,2546.9,2546.1,14.4226]
[1746926337074,3.92660211,2546.8,2546.1,14.4226]
[1746926337310,8.0,2547.1,2542.7,3.925]
[1746926337311,0.82518969,2546.7,2545.8,0.3006]
[1746926337508,3.92695857,2546.5,2545.8,0.3006]
[1746926337812,0.04909774,2546.4,2545.8,0.3006]
[1746926337967,3.92727514,2546.3,2545.8,0.3006]
[1746926338173,0.04909774,2546.2,2545.8,0.3006]
[1746926338418,0.04909774,2546.3,2545.8,0.3006]
[1746926338641,0.04909986,2546.5,2545.8,0.3006]
[1746926338776,0.43051985,2546.5,2545.8,0.3006]
[1746926339178,3.92719503,2546.4,2545.8,0.3006]
[1746926339400,0.04909984,2546.3,2545.8,0.3006]
[1746926339605,0.04909984,2546.3,2545.7,2.994]
[1746926339890,3.92766354,2546.1,2545.7,2.994]
[1746926340091,0.04910216,2546.0,2545.7,2.994]
[1746926340597,3.03710216,2546.0,2545.7,2.994]
[1746926341128,0.04909822,2546.4,2545.7,3.2934]
[1746926341327,0.04909822,2546.4,2545.8,0.3006]
[1746926341491,6.91504861,2546.5,2545.9,2.995]
[1746926341690,0.04909749,2546.4,2545.9,2.995]
[1746926342098,2.988,2546.7,2545.9,2.995]
[1746926342301,3.03709281,2546.7,2546.0,0.32956]
[1746926342617,0.04908572,2546.6,2546.1,0.3006]
[1746926342821,3.03708707,2546.7,2546.1,0.3006]
[1746926343003,0.04908707,2547.0,2546.2,0.01956514]
[1746926343328,3.92692002,2546.6,2546.1,0.3006]
[1746926343631,3.976052,2546.5,2546.1,3.2956]
[1746926343840,2.988,2546.4,2545.7,0.3006]
[1746926344018,0.04909649,2546.3,2545.7,0.3006]
[1746926344746,3.92783594,2546.0,2545.6,2.995]
[1746926344944,0.44188855,2545.9,2545.6,2.995]
[1746926345167,2.988,2545.8,2545.6,2.995]
[1746926345328,0.04910721,2545.7,2545.6,2.995]
[1746926345514,2.988,2545.8,2545.6,2.995]
[1746926345846,3.97729984,2545.7,2545.6,2.995]
[1746926346443,3.92852087,2545.5,2545.1,3.2886]
[1746926346645,0.04911021,2545.6,2545.1,3.2886]
[1746926346836,2.988,2545.8,2545.2,0.01961047]
[1746926347637,2.988,2545.8,2545.1,5.02996]
[1746926348673,0.04910495,2545.7,2545.1,5.02996]
[1746926348821,2.988,2545.8,2545.1,5.02996]
[1746926349266,3.92824063,2545.7,2545.1,3.2886]
[1746926349431,3.92824063,2545.7,2545.1,0.3006]
[1746926349432,3.97734713,2545.7,2545.1,0.3006]
[1746926349633,3.92838986,2545.6,2545.0,17.113]
[1746926349827,0.04911382,2545.5,2545.0,17.113]
[1746926350263,0.04911381,2545.7,2545.0,17.113]
[1746926350467,3.92834695,2545.6,2545.0,17.113]
[1746926350763,0.04911381,2545.5,2545.0,17.113]
[1746926350964,3.92895651,2545.3,2545.0,2.988]
[1746926351122,0.04911722,2545.2,2545.0,2.988]
[1746926351533,0.04911721,2545.6,2545.0,2.988]
[1746926351826,2.989,2546.2,2545.1,8.32021078]
[1746926351827,3.97668786,2546.1,2545.1,8.32021078]
[1746926352026,8.04910989,2546.1,2545.1,0.3006]
[1746926352538,0.392692,2546.6,2545.2,0.56959924]
[1746926352719,0.04909443,2546.5,2545.6,0.3006]
[1746926352918,3.97607726,2546.5,2545.7,2.989]
[1746926353131,0.04909443,2546.5,2545.8,0.01958112]
[1746926353362,0.04909502,2546.7,2545.9,0.3006]
[1746926353666,3.97575031,2546.7,2546.0,0.01957226]
[1746926353829,0.04909502,2546.7,2545.9,0.3006]
[1746926354372,3.92692203,2546.6,2545.9,0.3006]
[1746926354614,0.04909083,2546.5,2545.9,0.3006]
[1746926354739,0.7716,2546.4,2545.7,2.989]
[1746926355073,6.96245743,2546.3,2545.7,2.989]
[1746926355271,3.92769684,2546.1,2545.7,2.989]
[1746926355424,0.04910048,2546.0,2545.7,2.989]
[1746926355627,0.04910048,2546.1,2545.7,2.989]
[1746926356048,3.03510047,2546.2,2545.7,2.989]
[1746926356244,2.986,2546.2,2545.7,2.989]
[1746926356447,2.986,2546.2,2545.7,3.31796]
[1746926356651,2.986,2546.2,2545.7,2.989]
[1746926356957,0.04909661,2546.2,2545.7,3.00858423]
[1746926357130,2.985,2546.4,2545.7,3.00858423]
[1746926357458,2.985,2546.4,2545.8,0.3006]
[1746926357624,2.985,2546.4,2545.9,0.01957268]
[1746926358024,0.04909084,2546.6,2545.9,0.01957268]
[1746926358248,3.03409079,2546.9,2545.9,0.01957268]
[1746926358445,3.03409079,2546.9,2546.0,0.3006]
[1746926358446,0.04909079,2546.9,2546.0,0.3006]
[1746926358836,0.04908288,2547.3,2546.3,0.55]
[1746926359044,2.985,2547.4,2546.4,3.0085426]
[1746926359225,2.985,2547.4,2546.6,0.8506]
[1746926359429,2.985,2547.4,2546.8,0.3006]
[1746926359761,2.985,2547.4,2546.6,0.55]
[1746926359762,0.04907075,2547.8,2547.0,0.3006]
[1746926360076,0.04907075,2547.8,2547.1,2.988]
[1746926360232,0.04906598,2547.9,2547.2,0.01952297]
[1746926360566,6.90964813,2548.0,2547.2,0.03925278]
[1746926360751,3.95444176,2547.9,2547.1,3.31686]
[1746926360922,0.02954301,2547.9,2547.2,0.03925278]
[1746926361128,0.02954301,2547.9,2547.3,0.3006]
[1746926361349,2.985,2548.0,2547.4,0.03924924]
[1746926361565,0.02954301,2548.2,2547.4,0.03924924]
[1746926362337,0.02954301,2548.4,2547.5,3.2886]
[1746926362541,3.95338353,2548.6,2547.6,0.33278492]
[1746926362852,3.92414005,2548.4,2547.6,0.33278492]
[1746926363164,0.02954301,2548.3,2547.5,3.2886]
[1746926363393,3.95378532,2548.3,2547.5,3.2886]
[1746926363528,0.7855,2548.0,2547.2,0.3006]
[1746926363730,3.92538927,2547.6,2547.2,0.3006]
[1746926364044,0.02954301,2547.8,2547.2,0.3006]
[1746926364431,3.92514799,2547.7,2547.2,0.3006]
[1746926364644,0.02954301,2547.6,2547.2,0.3006]
[1746926364845,0.02954301,2547.6,2547.0,2.988]
[1746926365183,3.92603352,2547.1,2547.0,2.988]
[1746926365398,0.7855,2547.1,2546.5,0.35585426]
[1746926365549,0.7855,2547.1,2543.7,1.93776961]
[1746926365550,8.0,2546.5,2545.5,0.3006]
[1746926365749,3.92791735,2545.9,2545.5,0.3006]
[1746926365978,3.92791735,2545.9,2544.5,2.988]
[1746926365979,3.92910305,2545.2,2544.6,0.3006]
[1746926366178,3.92860121,2545.5,2544.6,0.3006]
[1746926366387,0.02954301,2545.4,2544.6,8.3006]
[1746926366586,0.02954301,2545.4,2544.6,0.3006]
[1746926366797,0.02954301,2545.5,2544.7,0.03928935]
[1746926366992,3.92865561,2545.4,2544.6,0.62946]
[1746926367287,0.02954301,2545.3,2544.7,2.988]
[1746926367486,0.02954301,2545.7,2544.7,2.988]
[1746926367692,0.02954301,2545.7,2544.8,0.361746]
[1746926368489,3.92859817,2545.5,2544.8,0.361746]
[1746926368686,3.95820781,2545.4,2544.8,0.361746]
[1746926369151,0.02954301,2545.4,2544.8,0.361746]
[1746926369753,3.92899805,2545.2,2544.7,2.988]
[1746926369953,0.02954301,2545.2,2544.7,2.988]
[1746926370196,2.982,2545.2,2544.7,2.988]
[1746926372051,0.02954301,2545.1,2544.7,2.988]
[1746926372252,3.92953728,2544.9,2544.7,2.988]
[1746926372469,3.9591249,2544.8,2544.7,2.988]
[1746926372670,0.02954301,2544.8,2544.7,2.988]
[1746926372868,3.95870093,2545.1,2544.7,2.988]
[1746926373168,3.92927308,2545.0,2544.7,2.988]
[1746926373368,0.02954301,2544.9,2544.7,2.988]
[1746926374298,3.93042456,2544.3,2544.0,2.989]
[1746926374469,2.981,2544.4,2544.0,2.989]
[1746926374659,0.02954301,2544.3,2544.0,2.989]
[1746926380464,3.96000105,2544.3,2544.0,2.989]
[1746926380962,0.02954301,2544.3,2544.0,2.989]
[1746926381765,0.02954301,2544.3,2543.5,8.0]
[1746926381965,0.02954301,2544.3,2543.5,9.12826]
[1746926382161,0.02954301,2544.3,2543.4,3.2826]
[1746926382364,3.60430064,2544.3,2543.4,3.2826]
[1746926382777,3.93104666,2543.9,2543.4,3.2826]
[1746926382978,0.02954301,2543.8,2543.4,3.2826]
[1746926383174,0.02954301,2544.0,2543.4,3.2826]
[1746926383403,3.96039809,2544.0,2543.4,3.2826]
[1746926383798,3.93102032,2543.9,2543.4,3.2826]
[1746926383975,3.96043501,2544.0,2543.4,3.2826]
[1746926384183,0.02954301,2544.0,2543.4,3.2826]
[1746926384706,3.96037846,2544.0,2543.4,3.2826]
[1746926384904,3.96037846,2544.0,2543.4,3.61086]
[1746926384905,0.02954301,2544.0,2543.4,3.61086]
[1746926385082,0.02954301,2544.3,2543.5,0.03931277]
[1746926385282,0.02954301,2544.3,2543.4,3.61086]
[1746926385487,2.98,2544.3,2543.5,0.03931014]
[1746926385688,3.00954301,2544.3,2543.6,0.3006]
[1746926386002,3.00954301,2544.3,2543.7,0.03930736]
[1746926386208,3.00954301,2544.3,2543.6,0.3006]
[1746926386405,6.93990101,2544.3,2543.6,0.3006]
[1746926386609,3.00954301,2544.3,2543.6,0.3006]
[1746926386909,0.02954301,2544.3,2543.6,0.3006]
[1746926387307,0.02954301,2544.3,2543.7,0.03930739]
[1746926388296,3.95991749,2544.3,2543.7,0.03930739]
[1746926388501,3.95993869,2544.3,2543.7,0.03930739]
[1746926388813,3.95993869,2544.3,2543.6,0.3006]
[1746926389105,3.9305651,2544.2,2543.7,0.03930739]
[1746926389307,3.95999561,2544.3,2543.6,0.3006]
[1746926389515,3.93055105,2544.2,2543.6,0.3006]
[1746926390037,3.95996502,2544.3,2543.6,0.3006]
[1746926390189,2.979,2544.4,2543.7,0.0393074]
[1746926390530,0.02954301,2544.3,2543.6,0.3006]
[1746926390841,3.93052697,2544.2,2543.6,0.3006]
[1746926391123,3.95993452,2544.3,2543.6,0.3006]
[1746926391823,0.02954301,2544.3,2543.7,0.03930741]
[1746926392325,0.02954301,2544.3,2543.8,0.3006]
[1746926392526,2.978,2544.6,2543.9,0.03930182]
[1746926392822,3.00754301,2544.7,2544.0,2.982]
[1746926392994,2.978,2544.7,2544.1,0.3399009]
[1746926393323,2.978,2544.8,2544.1,0.67209099]
[1746926393514,2.978,2544.9,2544.1,0.67209099]
[1746926393718,0.02954301,2544.8,2544.1,0.63279009]
[1746926393916,6.93600138,2544.9,2544.1,0.63279009]
[1746926394113,3.92958189,2544.8,2544.1,0.63279009]
[1746926394315,0.02954301,2544.7,2544.1,0.63279009]
[1746926394531,3.60430064,2544.7,2544.0,2.982]
[1746926394736,3.57475763,2544.4,2544.0,2.982]
[1746926394891,3.93062203,2544.2,2544.0,2.982]
[1746926395090,3.00654301,2544.3,2544.0,2.982]
[1746926395604,6.93695631,2544.3,2544.0,2.982]
[1746926395942,3.00654301,2544.3,2544.0,2.982]
[1746926396094,2.977,2544.3,2544.0,2.982]
[1746926396630,2.977,2544.3,2544.0,3.31026]
[1746926396991,0.02954301,2544.6,2544.0,3.31026]
[1746926397215,2.976,2544.6,2544.0,3.31026]
[1746926397621,3.95930151,2544.7,2544.1,0.03930343]
[1746926397622,3.00554301,2544.7,2544.1,0.03930343]
[1746926397946,2.976,2544.7,2544.1,0.03930343]
[1746926398120,3.00554301,2544.7,2544.0,3.31026]
[1746926398318,3.93038615,2544.3,2543.8,0.3006]
[1746926398507,0.02954301,2544.2,2543.8,0.3006]
[1746926398706,0.02954301,2544.4,2543.8,0.3006]
[1746926398949,3.93074301,2544.1,2543.8,0.3006]
[1746926399134,0.02954301,2544.0,2543.8,0.3006]
[1746926399937,3.93097212,2543.9,2543.5,3.2836]
[1746926400143,0.02954301,2544.0,2543.5,3.2836]
[1746926400355,2.975,2544.6,2543.7,0.3006]
[1746926400521,2.975,2544.6,2543.9,0.3006]
[1746926400715,2.975,2544.6,2544.0,0.03930235]
[1746926401047,0.766,2545.3,2544.2,0.3006]
[1746926401365,3.00454301,2545.2,2544.4,0.3006]
[1746926401721,0.22030695,2545.1,2544.5,0.03929279]
[1746926402345,0.22030695,2545.1,2544.4,0.3006]
[1746926402523,6.93355144,2545.2,2544.4,0.3006]
[1746926402719,3.00454301,2545.2,2544.4,0.3006]
[1746926402920,6.93357186,2545.2,2544.4,0.3006]
[1746926403335,6.93351366,2545.2,2544.4,0.3006]
[1746926403542,6.93351366,2545.2,2544.0,0.3006]
[1746926403543,3.92989056,2544.7,2544.0,0.3006]
[1746926403748,3.95902379,2544.9,2544.1,2.982]
[1746926403954,3.95899068,2544.9,2544.1,3.31026]
[1746926404150,0.02954301,2545.0,2544.2,0.33989758]
[1746926404319,3.00354301,2545.0,2544.2,0.33989758]
[1746926404520,0.22019092,2544.9,2544.2,8.33989758]
[1746926405135,3.00354301,2545.0,2544.2,8.33989758]
[1746926405457,0.02954301,2545.0,2544.2,9.50491334]
[1746926405675,3.95883506,2545.0,2544.2,9.50491334]
[1746926406021,6.93183506,2545.0,2544.2,9.50491334]
[1746926406233,3.92946085,2544.9,2544.2,9.46561576]
[1746926406440,0.02954301,2544.8,2544.2,8.3006]
[1746926406634,0.02954301,2544.9,2544.2,8.33989974]
[1746926406926,3.95923969,2544.8,2544.2,8.3006]
[1746926407683,0.02954301,2544.8,2544.2,8.3006]
[1746926407855,0.02954301,2544.9,2544.2,8.3006]
[1746926408050,0.02954301,2544.9,2544.2,9.42886]
[1746926408256,0.02954301,2544.9,2544.2,9.46815974]
[1746926409537,0.02954301,2544.9,2544.2,1.42886]
[1746926409742,3.92973631,2544.7,2544.2,0.3006]
[1746926410079,1.62809807,2544.0,2543.4,0.55]
[1746926410269,1.1590659,2544.0,2543.7,0.55]
[1746926410465,1.1590659,2544.0,2543.8,0.02940691]
[1746926410669,0.57953295,2544.0,2543.8,0.8873476]
[1746926412183,0.57953295,2544.0,2543.8,0.85794069]
[1746926414088,0.57953295,2544.0,2543.9,0.57940821]
[1746926414384,0.18110404,2544.0,2543.9,7.12416584]
[1746926414585,0.29950861,2545.9,2544.1,0.55]
[1746926414787,3.97700645,2545.9,2544.4,8.0]
[1746926414993,3.97700645,2545.9,2544.6,0.55]
[1746926414994,4.14804686,2545.8,2544.6,0.55]
[1746926415161,0.04910895,2545.7,2544.5,17.113]
[1746926415358,0.7525,2545.6,2544.5,14.143]
[1746926415576,3.9293064,2545.0,2544.5,17.116]
[1746926415770,0.04912114,2544.9,2544.5,17.116]
[1746926416159,3.019121,2545.1,2544.5,17.116]
[1746926416388,3.92885014,2545.3,2544.5,17.116]
[1746926416389,0.04911855,2545.2,2544.5,17.116]
[1746926417898,0.04911527,2545.3,2544.6,0.02938561]
[1746926418402,3.97795623,2545.3,2544.5,17.116]
[1746926418701,4.14896171,2545.2,2544.5,17.116]
[1746926418997,0.04911828,2545.1,2544.6,2.973]
[1746926419193,0.26911252,2545.2,2544.6,2.973]
[1746926419373,3.18899368,2545.2,2544.6,2.973]
[1746926419562,2.969,2545.2,2544.6,2.973]
[1746926419899,3.9778466,2545.4,2544.7,1.04493954]
[1746926419900,3.01711868,2545.4,2544.7,1.04493954]
[1746926420284,0.22000846,2545.3,2544.7,1.04493954]
[1746926420488,0.22000846,2545.3,2544.7,1.07432516]
[1746926421202,3.01711868,2545.4,2544.7,1.07432516]
[1746926422577,3.01711868,2545.4,2544.7,9.07432516]
[1746926422773,0.04911474,2545.5,2544.8,1.20473252]
[1746926423003,3.7276,2546.0,2544.8,1.20473252]
[1746926423004,2.967,2545.7,2544.9,0.02937462]
[1746926423318,0.26913547,2545.6,2544.9,0.02937462]
[1746926424314,0.0491105,2545.6,2544.9,0.02937462]
[1746926424491,0.0491105,2545.6,2544.9,1.05727929]
[1746926425014,0.0491105,2545.6,2544.9,0.02937462]
[1746926425217,0.0491105,2545.6,2544.8,0.02937601]
[1746926425916,3.97747634,2545.6,2544.8,0.02937601]
[1746926426303,0.0491105,2545.6,2544.8,0.02937601]
[1746926428611,0.04911043,2545.7,2544.8,0.02937601]
[1746926428794,0.04911043,2545.7,2544.8,1.23410757]
[1746926430124,0.04911049,2545.8,2544.8,1.23410757]
[1746926430331,3.013104,2545.9,2544.9,0.55]
[1746926430691,3.013104,2545.9,2544.9,0.45]
[1746926431286,0.049104,2545.9,2545.0,0.029361]
[1746926431488,2.963,2546.2,2545.0,0.029361]
[1746926431805,0.7612,2547.0,2545.5,8.0]
[1746926431993,0.42919289,2547.0,2545.7,8.0]
[1746926432191,3.5798127,2546.9,2545.7,8.0]
[1746926432423,3.5798127,2546.9,2545.6,15.29207289]
[1746926432424,0.7612,2546.8,2545.9,8.0]
[1746926432605,7.45759014,2546.6,2545.9,8.0]
[1746926432786,0.04909353,2546.5,2545.9,8.02934211]
[1746926432991,0.04909353,2546.5,2545.9,8.0]
[1746926432992,5.04506092,2546.5,2545.9,8.0]
[1746926433215,1.11804086,2546.5,2545.9,8.02934211]
[1746926434027,0.7612,2546.8,2545.9,8.02934211]
[1746926434215,0.04908963,2546.7,2545.9,8.02934211]
[1746926434820,0.21953201,2546.8,2545.9,8.02934211]
[1746926435509,2.962,2546.9,2545.9,8.02934211]
[1746926435922,2.962,2546.9,2546.0,0.55]
[1746926436107,2.962,2546.9,2546.1,0.85793421]
[1746926437236,2.962,2546.9,2546.2,0.02931596]
[1746926437636,2.962,2546.9,2546.1,0.85793421]
[1746926438145,2.962,2546.9,2546.2,0.02931597]
[1746926438342,0.04908046,2547.2,2546.3,0.55]
[1746926438635,3.5307289,2547.8,2546.5,8.55]
[1746926438835,0.04906793,2547.9,2546.7,8.55]
[1746926439008,0.04906793,2547.9,2546.8,0.02928691]
[1746926439009,0.04906593,2547.9,2546.8,0.02928691]
[1746926439209,0.04906593,2547.9,2546.9,0.02928787]
[1746926439408,0.04906593,2547.9,2547.1,8.0]
[1746926439616,3.92495486,2547.8,2547.1,8.0]
[1746926439831,0.04906641,2547.7,2547.1,8.0]
[1746926440408,0.04906641,2547.7,2547.2,0.0292898]
[1746926440615,0.04906641,2547.7,2547.1,8.0]
[1746926441022,0.04906641,2547.7,2547.2,0.02928979]
[1746926441328,0.04906641,2547.7,2547.1,8.0]
[1746926441533,1.08589096,2547.8,2547.2,0.02928978]
[1746926442235,3.92382116,2548.6,2547.4,3.5307289]
[1746926442439,3.97266817,2548.7,2547.5,8.02926525]
[1746926442741,3.97266817,2548.7,2547.7,8.0]
[1746926442942,3.92389907,2548.5,2547.8,0.02926054]